fUSD/lending_fUSD_20250620
["ID","MTS","AMOUNT","RATE_DAILY","PERIOD"]
[366654376,1750377903157,1034.45996362,0.00024658,120]
[366654379,1750378033704,217.0,0.00025,120]
[366654386,1750378231954,-200.0,0.00024525,2]
[366654387,1750378231966,-2000.0,0.00024658,15]
[366654388,1750378231976,-300.0,0.00024977,2]
[366654389,1750378231986,-300.0,0.00024978,2]
[366654390,1750378231996,-1200.0,0.00024978,2]
[366654391,1750378232007,-300.0,0.00024978,2]
[366654392,1750378232017,-33168.6222563,0.00024979,2]
[366654393,1750378232028,-1854.30229825,0.00025245,12]
[366654394,1750378232037,-1854.30229825,0.0002559,13]
[366654395,1750378232048,-200.0,0.0002589,4]
[366654396,1750378232058,-1854.30229825,0.00025934,14]
[366654397,1750378232068,-1854.30229825,0.00026279,14]
[366654398,1750378232078,-267.84056225,0.00026334,4]
[366654399,1750378232088,-192.47908718,0.00026334,4]
[366654400,1750378232098,-433.89170601,0.00026624,15]
[366654401,1750378232164,-1420.41059224,0.00026624,15]
[366654402,1750378232175,-2627.08,0.00026693,2]
[366654403,1750378232186,-1854.30229825,0.00026969,16]
[366654404,1750378232196,-157.0,0.00027,7]
[366654405,1750378232206,-300.0,0.00027016,120]
[366654406,1750378232217,-374.35,0.0002702,120]
[366654407,1750378232227,-420.0,0.00027059,2]
[366654408,1750378232237,-420.0,0.0002706,2]
[366654409,1750378232248,-200.0,0.0002715,7]
[366654410,1750378232259,-500.0,0.00027178,2]
[366654411,1750378232269,-1680.0,0.00027182,2]
[366654412,1750378232280,-200.0,0.00027254,6]
[366654413,1750378232290,-1854.30229825,0.00027314,16]
[366654414,1750378232301,-978.0,0.00027416,2]
[366654415,1750378232311,-1927.0,0.00027553,2]
[366654416,1750378232321,-1000.0,0.00027602,2]
[366654418,1750378232332,-250.0,0.00027607,2]
[366654421,1750378232342,-1854.30229825,0.00027659,17]
[366654423,1750378232352,-5419.42530784,0.00027687,2]
[366654425,1750378232362,-1624.0,0.00027689,2]
[366654427,1750378232373,-250.0,0.00027723,2]
[366654429,1750378232383,-658.3371212,0.00027725,14]
[366654431,1750378232393,-151.0,0.0002777,2]
[366654433,1750378232404,-200.39464273,0.0002777,2]
[366654435,1750378232414,-151.0,0.0002777,2]
[366654437,1750378232427,-151.0,0.0002777,2]
[366654439,1750378232438,-198.0,0.0002777,2]
[366654441,1750378232449,-782.39,0.00027787,5]
[366654443,1750378232459,-299.99,0.00027787,12]
[366654445,1750378232469,-9999.99,0.00027787,2]
[366654447,1750378232479,-150.99,0.00027787,2]
[366654449,1750378232489,-999.99,0.00027787,2]
[366654451,1750378232499,-9999.99,0.00027787,2]
[366654454,1750378232511,-10622.43,0.00027787,2]
[366654456,1750378232520,-1482.46,0.00027787,2]
[366654458,1750378232530,-274.82,0.00027787,2]
[366654460,1750378232540,-55393.99434863,0.00027787,10]
[366654531,1750378237784,-4878.75604332,0.00027787,10]
[366654533,1750378237840,-2522.2,0.00027787,10]
[366654534,1750378237853,-400.0,0.00027787,10]
[366654535,1750378237864,-1052.91869535,0.00027787,10]
[366654536,1750378237875,-527.08466252,0.00027787,10]
[366654537,1750378237887,-250.97874506,0.00027787,10]
[366654538,1750378237901,-3262.08678819,0.00027787,10]
[366654735,1750378240271,-2556.20431575,0.00027787,10]
[366654739,1750378240297,-9247.07640118,0.00027787,10]
[366654742,1750378240318,-833.98582983,0.00027787,10]
[366654745,1750378240340,-1546.99932527,0.00027788,2]
[366654749,1750378240366,-20126.32067473,0.00027788,2]
[366654752,1750378240387,-500.0,0.000278,5]
[366654756,1750378240410,-164.6778826,0.00027825,2]
[366654759,1750378240432,-776.0,0.00027826,2]
[366654762,1750378240457,-5419.4253078,0.0002785,2]
[366654765,1750378240480,-1803.0,0.00027857,2]
[366654769,1750378240504,-341.65,0.00027884,2]
[366654771,1750378240521,-956.0,0.00027962,2]
[366654774,1750378240542,-300.0,0.00027978,2]
[366654777,1750378240556,-300.27,0.00027978,2]
[366654780,1750378240575,-444.0,0.00027979,2]
[366654783,1750378240595,-1202.0,0.00027995,2]
[366654789,1750378240648,-863.01161837,0.00028,2]
[366654793,1750378240670,-1854.30229825,0.00028003,18]
[366654796,1750378240693,-3551.04651115,0.00028013,2]
[366654800,1750378240721,-678.42001266,0.00028013,2]
[366654803,1750378240747,-1189.95878399,0.00028013,2]
[366654807,1750378240769,-461.68,0.00028082,2]
[366654810,1750378240791,-441.98221112,0.00028082,2]
[366654814,1750378240816,-1153.03778888,0.00028082,2]
[366654817,1750378240836,-1717.0,0.00028098,2]
[366654820,1750378240856,-799.0,0.00028118,2]
[366654823,1750378240876,-196.0,0.00028134,2]
[366654826,1750378240896,-5419.4253078,0.00028176,2]
[366654829,1750378240915,-207.4,0.00028216,2]
[366654832,1750378240935,-800.0,0.00028216,2]
[366654834,1750378240953,-800.0,0.00028216,2]
[366654838,1750378240977,-800.0,0.00028216,2]
[366654841,1750378240998,-55.90983,0.00028216,2]
[366654846,1750378241038,-548.66066903,0.00028216,2]
[366654849,1750378241061,-195.42950097,0.00028216,2]
[366654852,1750378241080,-800.0,0.00028216,2]
[366654855,1750378241099,-1696.32927913,0.00028216,2]
[366654858,1750378241119,-766.44800324,0.00028216,2]
[366654861,1750378241137,-500.0,0.00028216,2]
[366654864,1750378241156,-500.0,0.00028216,2]
[366654867,1750378241175,-500.0,0.00028216,2]
[366654870,1750378241193,-188.24571073,0.00028216,2]
[366654873,1750378241212,-151.0,0.00028216,2]
[366654876,1750378241230,-1051.0,0.00028235,2]
[366654879,1750378241249,-174.0,0.00028258,2]
[366654882,1750378241268,-779.0,0.00028272,2]
[366654885,1750378241287,-863.01161838,0.00028306,2]
[366654887,1750378241306,-5419.4253078,0.00028339,2]
[366654890,1750378241324,-1854.30229825,0.00028348,18]
[366654893,1750378241343,-245.03,0.0002837,2]
[366654896,1750378241361,-565.0,0.00028371,2]
[366654899,1750378241379,-1358.0,0.00028397,2]
[366654902,1750378241397,-166.2,0.000284,2]
[366654905,1750378241415,-341.78,0.00028493,2]
[366654908,1750378241434,-747.13,0.00028493,2]
[366654910,1750378241454,-455.38,0.00028493,2]
[366654913,1750378241471,-5419.4253078,0.00028503,2]
[366654916,1750378241490,-254.0,0.00028508,2]
[366654919,1750378241508,-201.0,0.00028536,2]
[366654922,1750378241526,-796.14,0.00028575,2]
[366654925,1750378241543,-151.49054273,0.00028606,2]
[366654928,1750378241560,-501.13938918,0.00028608,2]
[366654931,1750378241579,-1000.0,0.00028617,2]
[366654933,1750378241597,-200.0,0.00028618,8]
[366654936,1750378241617,-833.98582983,0.0002863,2]
[366654939,1750378241635,-1866.0,0.00028644,2]
[366654942,1750378241652,-5419.4253078,0.00028666,2]
[366654945,1750378241670,-1084.0,0.00028675,2]
[366654948,1750378241687,-752.4202,0.00028685,10]
[366654950,1750378241705,-179.4101439,0.00028687,2]
[366654953,1750378241724,-299.82319334,0.00028687,2]
[366654956,1750378241741,-9430.48681751,0.00028688,2]
[366654967,1750378241846,-18600.80284229,0.00028688,2]
[366654970,1750378241863,-390.7578962,0.0002869,4]
[366654973,1750378241883,-490.0,0.0002869,4]
[366654976,1750378241901,-490.0,0.0002869,4]
[366654978,1750378241918,-490.0,0.0002869,4]
[366654981,1750378241937,-601.89,0.0002869,4]
[366654982,1750378241955,-490.0,0.0002869,4]
[366654983,1750378241972,-490.0,0.0002869,4]
[366654984,1750378241990,-692.56,0.0002869,4]
[366654985,1750378242008,-490.0,0.0002869,4]
[366654986,1750378242026,-490.0,0.0002869,4]
[366654987,1750378242044,-505.43,0.0002869,4]
[366654989,1750378242061,-1810.81,0.0002869,4]
[366654992,1750378242080,-490.0,0.0002869,4]
[366654995,1750378242099,-490.0,0.0002869,4]
[366654998,1750378242116,-490.0,0.0002869,4]
[366655000,1750378242134,-490.0,0.0002869,4]
[366655003,1750378242152,-490.0,0.0002869,4]
[366655006,1750378242170,-490.0,0.0002869,4]
[366655009,1750378242187,-490.0,0.0002869,4]
[366655012,1750378242203,-490.0,0.0002869,4]
[366655015,1750378242221,-529.89,0.0002869,4]
[366655017,1750378242238,-490.0,0.0002869,4]
[366655020,1750378242257,-602.04,0.0002869,4]
[366655023,1750378242274,-770.9,0.0002869,4]
[366655026,1750378242292,-703.51,0.0002869,4]
[366655029,1750378242309,-490.0,0.0002869,4]
[366655032,1750378242327,-490.0,0.0002869,4]
[366655034,1750378242347,-490.0,0.0002869,4]
[366655035,1750378242364,-490.0,0.0002869,4]
[366655036,1750378242381,-805.16,0.0002869,4]
[366655037,1750378242399,-490.0,0.0002869,4]
[366655038,1750378242415,-3571.9,0.0002869,4]
[366655039,1750378242433,-490.0,0.0002869,4]
[366655040,1750378242452,-3420.76,0.0002869,4]
[366655041,1750378242470,-490.0,0.0002869,4]
[366655042,1750378242488,-490.0,0.0002869,4]
[366655043,1750378242507,-490.0,0.0002869,4]
[366655044,1750378242524,-772.78,0.0002869,4]
[366655045,1750378242539,-1365.403494,0.0002869,4]
[366655046,1750378242551,-158.697588,0.0002869,4]
[366655047,1750378242561,-1011.52,0.0002869,4]
[366655048,1750378242571,-578.1,0.0002869,4]
[366655049,1750378242582,-162.284004,0.0002869,4]
[366655050,1750378242593,-490.0,0.00028691,4]
[366655051,1750378242602,-490.0,0.00028691,4]
[366655052,1750378242612,-491.75563242,0.00028691,4]
[366655054,1750378242624,-490.0,0.00028691,4]
[366655055,1750378242637,-490.0,0.00028691,4]
[366655056,1750378242648,-490.0,0.00028691,4]
[366655060,1750378243119,-490.0,0.00028691,4]
[366655061,1750378243179,-490.0,0.00028691,4]
[366655062,1750378243203,-490.0,0.00028691,4]
[366655063,1750378243213,-490.0,0.00028691,4]
[366655064,1750378243223,-490.0,0.00028691,4]
[366655065,1750378243235,-1854.30229825,0.00028693,19]
[366655066,1750378243244,-174.21765454,0.00028696,2]
[366655067,1750378243253,-500.0,0.00028696,2]
[366655068,1750378243263,-500.0,0.00028696,2]
[366655069,1750378243272,-468.58281049,0.00028696,2]
[366655070,1750378243282,-500.0,0.00028696,2]
[366655071,1750378243292,-500.0,0.00028696,2]
[366655072,1750378243302,-500.0,0.00028696,2]
[366655073,1750378243311,-333.68760828,0.00028696,2]
[366655074,1750378243322,-28031.2896598,0.00028696,2]
[366655075,1750378243331,-1195375.22512607,0.00028697,4]
[366655076,1750378243344,-8819.74448962,0.00028697,4]
[366655077,1750378243354,-1597403.82372359,0.00028697,5]
[366655078,1750378243376,-451.2649505,0.00028697,5]
[366655079,1750378243388,-1471.60765373,0.00028697,5]
[366655080,1750378244267,-295.98798565,0.00028697,5]
[366655081,1750378246086,-5165.68833627,0.00028697,5]
[366655082,1750378246129,-631.0,0.00028697,5]
[366655089,1750378692040,205.0,0.00022525,2]
[366655090,1750378751892,203.0,0.00022525,2]
[366655094,1750378992028,160.05,0.00013699,2]
[366655096,1750379051853,205.0,0.00022967,2]
[366655097,1750379127398,505.8088933,0.000245,120]
[366655099,1750379134662,216.77608047,0.0002465,120]
[366655101,1750379232146,623.09667296,0.0002301,120]
[366655104,1750379312765,6285.02543898,0.00019889,2]
[366655112,1750379324547,152.059406,0.000205,2]
[366655114,1750379326180,250.0,0.00015,2]
[366655118,1750379328278,160.0,0.00016434,120]
[366655123,1750379431944,-205.0,0.00023448,2]
[366655125,1750379431954,-95.11668705,0.00024658,15]
[366655127,1750379431968,-791.49937177,0.00024658,15]
[366655130,1750379431980,-1113.38394118,0.00024658,15]
[366655131,1750379431990,-205.0,0.00024971,4]
[366655132,1750379432000,-2000.0,0.00026,120]
[366655133,1750379432010,-282.6435814,0.00026088,4]
[366655134,1750379432020,-205.0,0.00026494,6]
[366655135,1750379432030,-157.0,0.00027,7]
[366655136,1750379432040,-1651.27034911,0.00027,120]
[366655137,1750379432050,-639.74340022,0.00027095,2]
[366655138,1750379432067,-180.25659978,0.00027095,2]
[366655139,1750379432077,-197.33136882,0.00027123,2]
[366655140,1750379432102,-9.62863118,0.00027123,2]
[366655141,1750379432111,-355.27,0.00027195,120]
[366655142,1750379432122,-1200.0,0.00027214,2]
[366655143,1750379432132,-1862.0,0.00027215,2]
[366655144,1750379432143,-300.0,0.00027261,2]
[366655145,1750379432153,-300.0,0.00027261,2]
[366655146,1750379432163,-1019.0,0.00027262,2]
[366655147,1750379432173,-791.0,0.00027351,2]
[366655148,1750379432183,-200.0,0.0002737,7]
[366655149,1750379432194,-1000.0,0.00027389,2]
[366655150,1750379432204,-318.0,0.00027397,2]
[366655151,1750379432214,-176.14561519,0.00027397,2]
[366655152,1750379432224,-1683.83,0.00027397,2]
[366655153,1750379432235,-1165.18,0.00027397,2]
[366655154,1750379432244,-1165.18,0.00027397,2]
[366655155,1750379432254,-150.0,0.00027397,2]
[366655156,1750379432265,-505.20552842,0.000274,5]
[366655157,1750379432275,-490.3,0.000274,2]
[366655158,1750379432284,-2110.02712074,0.000274,120]
[366655159,1750379432295,-200.0,0.00027427,2]
[366655160,1750379432306,-2751.0,0.00027444,2]
[366655161,1750379432316,-150.99,0.00027444,2]
[366655163,1750379432326,-299.99,0.00027444,12]
[366655165,1750379432336,-999.99,0.00027444,2]
[366655167,1750379432347,-487.2,0.00027444,2]
[366655169,1750379432356,-150.99,0.00027444,2]
[366655172,1750379432367,-551.0,0.00027464,2]
[366655174,1750379432376,-300.0,0.00027464,2]
[366655176,1750379432387,-1775.0,0.00027486,2]
[366655177,1750379432397,-1410.0,0.00027493,2]
[366655178,1750379432408,-242.59,0.00027512,2]
[366655179,1750379432418,-1857.0,0.00027533,2]
[366655180,1750379432428,-221.53282677,0.00027555,2]
[366655181,1750379432438,-1607.0,0.00027595,2]
[366655182,1750379432449,-716.0,0.00027622,2]
[366655183,1750379432463,-170.82,0.00027666,2]
[366655184,1750379432472,-1711.0,0.00027669,2]
[366655185,1750379432483,-1927.01,0.0002769,120]
[366655186,1750379432492,-1181.0,0.00027733,2]
[366655187,1750379432508,-1594.29,0.00027753,2]
[366655188,1750379432518,-461.68,0.00027753,2]
[366655189,1750379432530,-150.0,0.00027778,2]
[366655190,1750379432540,-1449.0,0.00027804,2]
[366655191,1750379432550,-716.0,0.0002787,2]
[366655192,1750379432561,-455.38,0.00027884,2]
[366655194,1750379432571,-455.38,0.00027884,2]
[366655196,1750379432581,-455.38,0.00027884,2]
[366655197,1750379432592,-908.08,0.00027884,2]
[366655198,1750379432602,-455.38,0.00027884,2]
[366655199,1750379432612,-455.38,0.00027884,2]
[366655200,1750379432623,-455.38,0.00027884,2]
[366655201,1750379432632,-454.5,0.00027884,2]
[366655202,1750379432643,-171.21,0.0002789,2]
[366655203,1750379432653,-1165.18,0.0002789,2]
[366655204,1750379432663,-1165.18,0.0002789,2]
[366655205,1750379432673,-1165.18,0.0002789,2]
[366655206,1750379432684,-1165.18,0.0002789,2]
[366655207,1750379432694,-1854.4891299,0.000279,18]
[366655208,1750379432705,-916.0,0.0002794,2]
[366655209,1750379432715,-1224.0,0.00028007,2]
[366655210,1750379432726,-400.0,0.00028009,2]
[366655211,1750379432737,-205.0,0.00028017,9]
[366655212,1750379432747,-663.76585695,0.00028109,2]
[366655213,1750379432757,-1854.48912986,0.00028141,18]
[366655214,1750379432768,-1976.0,0.00028144,2]
[366655215,1750379432779,-166.97,0.00028191,2]
[366655216,1750379432789,-267642.57179842,0.00028207,5]
[366655217,1750379432803,-793.02525865,0.00028207,5]
[366655218,1750379432816,-586.89943357,0.00028207,5]
[366655219,1750379432828,-951.0,0.00028207,5]
[366655220,1750379432841,-3573.60976168,0.00028207,5]
[366655221,1750379432853,-1426.66750661,0.00028207,5]
[366655222,1750379433167,-1898.68129783,0.00028207,5]
[366655223,1750379433204,-1254.98903124,0.00028207,5]
[366655224,1750379433217,-4843.39423617,0.00028207,5]
[366655225,1750379433229,-6671.21539224,0.00028207,5]
[366655226,1750379433242,-916.48533667,0.00028207,5]
[366655227,1750379433257,-6474.59441001,0.00028207,5]
[366655228,1750379433270,-298.704,0.00028207,5]
[366655229,1750379433283,-94496.72235239,0.00028207,5]
[366655230,1750379433296,-2595.75038882,0.00028207,5]
[366655231,1750379433309,-675.41003666,0.00028207,5]
[366655232,1750379433321,-2269.33792627,0.00028207,5]
[366655233,1750379433340,-1852.24350587,0.00028207,5]
[366655234,1750379433362,-350.0,0.00028207,5]
[366655235,1750379433375,-748.44104968,0.00028207,5]
[366655236,1750379433405,-45607.31309146,0.00028207,5]
[366655237,1750379433421,-4076.97875391,0.00028207,5]
[366655238,1750379433455,-302.0,0.00028207,5]
[366655239,1750379433470,-819.33484271,0.00028207,5]
[366655244,1750379437920,-261.92,0.000274,7]
[366655245,1750379437933,-370.65084319,0.000274,7]
[366655246,1750379437945,-4367.42915681,0.000274,7]
[366655247,1750379437955,-177.45555384,0.00028206,2]
[366655248,1750379437965,-171.31528935,0.00028206,2]
[366655249,1750379437978,-328.68471065,0.00028206,2]
[366655250,1750379437988,-172.76285224,0.00028206,2]
[366655251,1750379437999,-500.0,0.00028206,2]
[366655252,1750379438009,-182.47261752,0.00028206,2]
[366655253,1750379438019,-384.00298132,0.00028206,2]
[366655254,1750379438031,-228.63727266,0.00028206,2]
[366655255,1750379438041,-500.0,0.00028206,2]
[366655256,1750379438050,-500.0,0.00028206,2]
[366655257,1750379438061,-500.0,0.00028206,2]
[366655258,1750379438070,-217.89903967,0.00028206,2]
[366655259,1750379438080,-250.96944193,0.00028206,2]
[366655260,1750379438090,-5433.53932687,0.00028207,5]
[366655261,1750379438102,-792.3496034,0.00028207,5]
[366655262,1750379438118,-1356.55,0.00028207,5]
[366655263,1750379438129,-1006.52512315,0.00028207,5]
[366655264,1750379438141,-434.683,0.00028207,5]
[366655265,1750379438153,-208301.19935958,0.00028207,5]
[366655266,1750379438210,-349.20432824,0.00028207,5]
[366655267,1750379438222,-3229.25396911,0.00028207,5]
[366655268,1750379438234,-11587.1081972,0.00028207,5]
[366655269,1750379438250,-1000.94979138,0.00028207,5]
[366655270,1750379438274,-277.595,0.00028207,5]
[366655271,1750379438286,-45159.76980502,0.00028207,5]
[366655272,1750379438341,-1222.56000018,0.00028207,5]
[366655433,1750379440370,-993.77509956,0.00028207,5]
[366655434,1750379440382,-455247.69639851,0.00028207,5]
[366655435,1750379440394,-1606223.56821321,0.00028207,5]
[366655436,1750379440409,-702.44420549,0.00028207,5]
[366655437,1750379440440,-3191.39276772,0.00028207,5]
[366655438,1750379440455,-6004.11719842,0.00028207,5]
[366655439,1750379440472,-587.55265136,0.00028207,5]
[366655440,1750379440484,-497.12974831,0.00028207,5]
[366655441,1750379440507,-766.04441055,0.00028207,5]
[366655442,1750379440519,-1413.51110107,0.00028207,5]
[366655443,1750379440562,-41600.67114969,0.00028207,5]
[366655444,1750379440601,-2100.05512954,0.00028207,5]
[366655445,1750379440613,-4316.23010528,0.00028207,5]
[366655446,1750379440724,-1269.39615247,0.00028207,5]
[366655447,1750379440736,-434.15677188,0.00028207,5]
[366655449,1750379443033,-577.13,0.00028207,5]
[366655451,1750379443127,-88253.33743675,0.00028207,5]
[366655452,1750379443140,-1720.20088146,0.00028207,5]
[366655453,1750379443152,-3364.67212073,0.00028207,5]
[366655454,1750379443210,-12527.2253672,0.00028207,5]
[366655455,1750379443221,-393.8979766,0.00028207,5]
[366655456,1750379443234,-420.0,0.00028207,5]
[366655457,1750379443270,-546.1,0.00028207,5]
[366655461,1750379446373,-1165.18,0.000274,2]
[366655462,1750379446383,-157.93303448,0.00028206,2]
[366655463,1750379446393,-257.01947636,0.00028206,2]
[366655464,1750379446403,-244.52815863,0.00028206,2]
[366655465,1750379446413,-73194.27351262,0.00028207,5]
[366655479,1750379982673,160.05,0.00013699,2]
[366655487,1750380632215,-2000.0,0.00024658,15]
[366655488,1750380632225,-1632.47592366,0.00024979,2]
[366655489,1750380632235,-300.0,0.00025775,2]
[366655490,1750380632245,-205.0,0.0002654,2]
[366655491,1750380632254,-833.98582983,0.00027,3]
[366655492,1750380632265,-1200.0,0.00027072,2]
[366655493,1750380632275,-12268.76,0.00027073,2]
[366655494,1750380632285,-300.0,0.00027123,2]
[366655495,1750380632294,-300.0,0.00027123,2]
[366655496,1750380632304,-299.48,0.00027331,120]
[366655497,1750380632314,-170.37087504,0.00027397,2]
[366655498,1750380632323,-1000.0,0.00027497,2]
[366655499,1750380632333,-1418.71465077,0.00027541,2]
[366655500,1750380632343,-200.0,0.00027561,7]
[366655501,1750380632352,-1765.0,0.00027565,2]
[366655502,1750380632363,-455.38,0.00027578,2]
[366655503,1750380632373,-455.38,0.00027578,2]
[366655504,1750380632384,-170.89,0.00027578,2]
[366655505,1750380632394,-170.89,0.00027578,2]
[366655506,1750380632404,-170.89,0.00027578,2]
[366655507,1750380632415,-455.38,0.00027578,2]
[366655508,1750380632424,-455.38,0.00027578,2]
[366655509,1750380632434,-170.89,0.00027578,2]
[366655510,1750380632445,-557.0,0.00027658,2]
[366655511,1750380632455,-675.05526852,0.00027658,2]
[366655512,1750380632465,-170.89,0.00027678,2]
[366655513,1750380632474,-170.89,0.00027678,2]
[366655515,1750380632484,-653.0,0.00027702,2]
[366655516,1750380632494,-1340.0,0.00027795,2]
[366655518,1750380632504,-791.276851,0.00027856,6]
[366655520,1750380632514,-709.66,0.00027863,2]
[366655522,1750380632523,-2060.519,0.0002789,10]
[366655524,1750380632533,-3852.59566359,0.00027891,5]
[366655526,1750380632586,-59461.44984449,0.00027891,5]
[366655527,1750380632598,-3240.4000002,0.00027891,5]
[366655528,1750380632610,-2240.46369792,0.00027891,5]
[366655529,1750380632622,-720.63172157,0.00027891,5]
[366655531,1750380632646,-4447.69263675,0.00027891,5]
[366655534,1750380632671,-456.7858882,0.00027891,5]
[366655537,1750380632683,-350.0,0.00027891,5]
[366655539,1750380632695,-893.01429191,0.00027891,5]
[366655543,1750380632723,-604.78140395,0.00027891,5]
[366655670,1750380638076,-4961.95494409,0.00027891,5]
[366655671,1750380638088,-3200.31409791,0.00027891,5]
[366655672,1750380638100,-565.03079631,0.00027891,5]
[366655673,1750380638129,-2315.67433593,0.00027891,5]
[366655674,1750380638141,-2652.9311706,0.00027891,5]
[366655675,1750380638155,-295.03502093,0.00027891,5]
[366655676,1750380638269,-1830.0963962,0.00027891,5]
[366655679,1750380641351,-21902.0,0.00027891,5]
[366655680,1750380641386,-72193.45626878,0.00027891,5]
[366655681,1750380641396,-300.0,0.00027899,2]
[366655682,1750380641406,-863.01161838,0.000279,2]
[366655683,1750380641416,-3958.6286,0.000279,2]
[366655684,1750380641426,-2276.80370902,0.000279,18]
[366655685,1750380641436,-200.17288421,0.00027912,2]
[366655686,1750380641446,-298.0,0.00027928,2]
[366655687,1750380641456,-4144.58360275,0.00027928,2]
[366655688,1750380641465,-999.99,0.00027929,2]
[366655689,1750380641474,-7095.07,0.00027929,20]
[366655690,1750380641484,-3875.17,0.00027929,2]
[366655691,1750380641493,-8097.5,0.00027929,2]
[366655692,1750380641503,-299.99,0.00027929,12]
[366655693,1750380641513,-9999.99,0.00027929,2]
[366655694,1750380641523,-150.99,0.00027929,2]
[366655695,1750380641533,-22500.82424102,0.0002793,2]
[366655696,1750380641542,-188.62,0.00027979,2]
[366655697,1750380641552,-150.82,0.00027979,2]
[366655698,1750380641562,-500.0,0.00027999,2]
[366655699,1750380641572,-522.41775804,0.00027999,2]
[366655700,1750380641582,-384.41681687,0.00027999,2]
[366655701,1750380641591,-188.15535436,0.00027999,2]
[366655702,1750380641602,-6666.0,0.00028,3]
[366655703,1750380641611,-6666.0,0.00028,8]
[366655704,1750380641621,-6358.0,0.00028,19]
[366655705,1750380641631,-6666.0,0.00028,7]
[366655706,1750380641640,-6666.0,0.00028,6]
[366655707,1750380641650,-9555.0,0.00028,9]
[366655708,1750380641660,-3796.9167462,0.00028,2]
[366655709,1750380641669,-3333.0,0.00028,12]
[366655710,1750380641679,-6666.0,0.00028,17]
[366655711,1750380641690,-6666.0,0.00028,9]
[366655712,1750380641700,-6853.0,0.00028,12]
[366655713,1750380641709,-7590.0,0.00028,6]
[366655714,1750380641719,-863.01161838,0.00028033,2]
[366655715,1750380641729,-500.0,0.00028106,30]
[366655716,1750380641738,-205.0,0.00028133,4]
[366655717,1750380641748,-2276.80370876,0.00028141,18]
[366655718,1750380641757,-3235.22799381,0.00028171,2]
[366655719,1750380641767,-162.0,0.000282,5]
[366655720,1750380641777,-461.43,0.000282,2]
[366655721,1750380641787,-162.0,0.000282,6]
[366655722,1750380641797,-500.0,0.00028206,2]
[366655723,1750380641807,-500.0,0.00028206,120]
[366655724,1750380641816,-500.0,0.00028206,2]
[366655725,1750380641825,-200.0,0.00028207,2]
[366655726,1750380641834,-500.0,0.00028207,30]
[366655727,1750380641844,-151.0,0.00028216,2]
[366655728,1750380641854,-152.21678659,0.00028216,2]
[366655729,1750380641864,-151.0,0.00028216,2]
[366655730,1750380641874,-500.0,0.00028216,2]
[366655731,1750380641884,-151.52017565,0.00028216,2]
[366655732,1750380641894,-500.0,0.00028216,2]
[366655733,1750380641904,-500.0,0.00028216,2]
[366655734,1750380641913,-668.65185757,0.00028216,2]
[366655735,1750380641923,-500.0,0.00028216,2]
[366655736,1750380641932,-500.0,0.00028216,2]
[366655737,1750380641942,-1957.856,0.00028216,2]
[366655738,1750380641951,-500.0,0.00028216,2]
[366655739,1750380641961,-500.0,0.00028216,2]
[366655740,1750380641970,-500.0,0.00028216,2]
[366655741,1750380641980,-500.0,0.00028216,2]
[366655742,1750380641989,-500.0,0.00028216,2]
[366655743,1750380641999,-500.0,0.00028216,2]
[366655744,1750380642009,-151.0,0.00028216,2]
[366655745,1750380642018,-500.0,0.00028216,2]
[366655746,1750380642028,-868.96893295,0.00028216,2]
[366655747,1750380642037,-151.0,0.00028216,2]
[366655748,1750380642047,-500.0,0.00028216,2]
[366655749,1750380642057,-151.0,0.00028216,2]
[366655750,1750380642067,-500.0,0.00028216,2]
[366655751,1750380642077,-151.0,0.00028216,2]